[Event "ESP-chT 2nd Division 2019"]
[Site "Linares"]
[Date "2019.08.23"]
[Round "7.38"]
[White "Sanchez Jerez, Emilio Miguel"]
[Black "Lizuain Toni, Javier"]
[Result "1-0"]
[ECO "A04"]
[WhiteElo "2141"]
[BlackElo "1884"]
[Annotator "ChessBase"]
[PlyCount "99"]
[EventDate "2019.08.19"]
[EventType "team-tourn"]
[EventCountry "ESP"]
[SourceTitle "playchess.com"]
[Source "ChessBase"]
[SourceQuality "1"]
[TimeControl "5400+30"]

1. Nf3 {[%emt 0:01:44]} f5 {[%emt 0:01:08]} 2. d3 {[%emt 0:00:05]} Nf6 {[%emt 0:03:29]} 3. e4 {[%emt 0:00:41]} e6 {[%emt 0:07:17]} 4. e5 {[%emt 0:00:50]} Nd5 {[%emt 0:02:41]} 5. Bg5 {[%emt 0:01:06]} Be7 {[%emt 0:01:03]} 6. h4 {[%emt 0:00:10]} Nc6 {[%emt 0:07:24]} 7. c4 {[%emt 0:05:10]} Nb6 {[%emt 0:02:38]} 8. c5 {[%emt 0:10:18]} Nd5 {[%emt 0:00:52]} 9. Nc3 {[%emt 0:04:14]} h6 {[%emt 0:09:19]} 10. Bxe7 {[%emt 0:06:20]} Qxe7 {[%emt 0:00:56]} 11. d4 {[%emt 0:08:33]} O-O {[%emt 0:10:17]} 12. Nxd5 {[%emt 0:07:32]} exd5 {[%emt 0:00:10]} 13. Qb3 {[%emt 0:00:07]} d6 {[%emt 0:10:11]} 14. cxd6 {[%emt 0:00:55]} cxd6 {[%emt 0:00:07]} 15. Qxd5+ {[%emt 0:03:49]} Be6 {[%emt 0:00:09]} 16. Qxd6 {[%emt 0:00:39]} Qxd6 {[%emt 0:00:48]} 17. exd6 {[%emt 0:00:03]} Rad8 {[%emt 0:05:13]} 18. Bb5 {[%emt 0:11:54]} Rxd6 {[%emt 0:01:45]} 19. Bxc6 {[%emt 0:01:04]} Rxc6 {[%emt 0:00:50]} 20. Kd2 {[%emt 0:14:05]} Rfc8 {[%emt 0:01:09]} 21. Ke3 {[%emt 0:12:36]} Rc2 {[%emt 0:03:23]} 22. Rhd1 {[%emt 0:00:57]} Bd5 {[%emt 0:10:29]} 23. Rd2 {[%emt 0:03:04]} Re8+ {[%emt 0:00:12]} 24. Ne5 {[%emt 0:02:07]} f4+ {[%emt 0:05:31]} 25. Kd3 {[%emt 0:00:51]} Rxd2+ {[%emt 0:00:28]} 26. Kxd2 {[%emt 0:00:02]} Bxg2 {[%emt 0:00:35]} 27. f3 {[%emt 0:02:16]} Rc8 {[%emt 0:03:37]} 28. Kd3 {[%emt 0:01:22]} Kf8 {[%emt 0:05:06]} 29. b4 {[%emt 0:01:19]} Bh3 {[%emt 0:01:19]} 30. Ke4 {[%emt 0:00:19]} Ke7 {[%emt 0:01:01]} 31. Rg1 {[%emt 0:00:43]} Rg8 {[%emt 0:00:56]} 32. Kxf4 {[%emt 0:00:27]} Be6 {[%emt 0:00:07]} 33. a3 {[%emt 0:00:22]} Bd5 {[%emt 0:00:23]} 34. Rg6 {[%emt 0:00:35]} Bb3 {[%emt 0:01:41]} 35. Rg1 {[%emt 0:00:27]} Bd5 {[%emt 0:00:56]} 36. Ng6+ {[%emt 0:00:32]} Kf6 {[%emt 0:00:38]} 37. h5 {[%emt 0:00:31]} Rc8 {[%emt 0:00:20]} 38. Ne5 {[%emt 0:00:11]} Bf7 {[%emt 0:00:43]} 39. Nd7+ {[%emt 0:00:35]} Ke6 {[%emt 0:00:02]} 40. Nc5+ {[%emt 0:00:37]} Kd5 {[%emt 0:00:44]} 41. Rxg7 {[%emt 0:00:23]} Bxh5 {[%emt 0:00:01]} 42. Rd7+ {[%emt 0:00:37]} Kc4 {[%emt 0:00:15]} 43. Ne6 {[%emt 0:00:45]} Kb3 {[%emt 0:01:27]} 44. Rxb7 {[%emt 0:00:18]} Kxa3 {[%emt 0:00:22]} 45. b5 {[%emt 0:00:26]} Rc3 {[%emt 0:00:13]} 46. Rxa7+ {[%emt 0:00:16]} Kb4 {[%emt 0:00:01]} 47. b6 {[%emt 0:00:17]} Rxf3+ {[%emt 0:01:31]} 48. Ke5 {[%emt 0:00:24]} Re3+ {[%emt 0:00:08]} 49. Kd6 {[%emt 0:00:13]} Bf3 {[%emt 0:03:35]} 50. b7 {[%emt 0:00:47]} 1-0

[Event "ESP-chT 2nd Division 2019"]
[Site "Linares"]
[Date "2019.08.23"]
[Round "7.39"]
[White "Roldan Marques, Marta"]
[Black "Escudero Manzano, Sergio"]
[Result "0-1"]
[ECO "B24"]
[WhiteElo "1886"]
[BlackElo "2190"]
[Annotator "ChessBase"]
[PlyCount "68"]
[EventDate "2019.08.19"]
[EventType "team-tourn"]
[EventCountry "ESP"]
[SourceTitle "playchess.com"]
[Source "ChessBase"]
[SourceQuality "1"]
[TimeControl "5400+30"]

1. e4 {[%emt 0:00:00]} c5 {[%emt 0:00:00]} 2. Nc3 {[%emt 0:00:00]} Nc6 {[%emt 0:00:26]} 3. Bb5 {[%emt 0:00:00]} Nd4 {[%emt 0:01:09]} 4. Bc4 {[%emt 0:00:00]} d6 {[%emt 0:02:36]} 5. Nge2 {[%emt 0:00:28]} e5 {[%emt 0:10:33]} 6. Nxd4 {[%emt 0:05:20]} exd4 {[%emt 0:03:25]} 7. Ne2 {[%emt 0:00:03]} Be6 {[%emt 0:01:37]} 8. Bxe6 {[%emt 0:06:47]} fxe6 {[%emt 0:00:09]} 9. d3 {[%emt 0:00:06]} Ne7 {[%emt 0:03:10]} 10. O-O {[%emt 0:05:58]} Qd7 {[%emt 0:03:04]} 11. Bd2 {[%emt 0:06:40]} g6 {[%emt 0:01:43]} 12. f4 {[%emt 0:02:30]} Bg7 {[%emt 0:01:51]} 13. Qe1 {[%emt 0:02:23]} O-O {[%emt 0:01:48]} 14. g4 {[%emt 0:05:41]} Rac8 {[%emt 0:11:11]} 15. c4 {[%emt 0:15:39]} d5 {[%emt 0:13:03]} 16. cxd5 {[%emt 0:10:16]} exd5 {[%emt 0:03:21]} 17. e5 Qxg4+ {[%emt 0:00:45]} 18. Kh1 {[%emt 0:02:22]} Nf5 {[%emt 0:07:26]} 19. Qf2 {[%emt 0:04:07]} Qh3 {[%emt 0:02:45]} 20. Qf3 {[%emt 0:03:08]} Qxf3+ {[%emt 0:04:03]} 21. Rxf3 {[%emt 0:00:06]} Rc6 {[%emt 0:04:47]} 22. Ng3 {[%emt 0:06:04]} Nxg3+ {[%emt 0:01:08]} 23. hxg3 {[%emt 0:00:04]} Bxe5 {[%emt 0:00:16]} 24. Re1 {[%emt 0:01:12]} Bf6 {[%emt 0:01:52]} 25. f5 {[%emt 0:02:16]} g5 {[%emt 0:05:00]} 26. g4 {[%emt 0:02:54]} c4 {[%emt 0:01:21]} 27. Bb4 {[%emt 0:02:07]} Rfc8 {[%emt 0:00:45]} 28. dxc4 {[%emt 0:02:51]} dxc4 {[%emt 0:00:17]} 29. Rc1 {[%emt 0:00:25]} Re8 {[%emt 0:00:36]} 30. Rf2 {[%emt 0:02:49]} Re4 {[%emt 0:00:52]} 31. Rg2 {[%emt 0:00:25]} c3 {[%emt 0:03:35]} 32. b3 {[%emt 0:03:20]} d3 {[%emt 0:00:17]} 33. Ba3 {[%emt 0:00:03]} d2 {[%emt 0:00:21]} 34. Rd1 {[%emt 0:00:10]} Be7 {[%emt 0:01:28]} 0-1

[Event "ESP-chT 2nd Division 2019"]
[Site "Linares"]
[Date "2019.08.23"]
[Round "7.40"]
[White "Gil Quilez, Sonia"]
[Black "Beaumont Arizaleta, Mikel"]
[Result "1-0"]
[ECO "A58"]
[WhiteElo "2102"]
[BlackElo "1754"]
[Annotator "ChessBase"]
[PlyCount "135"]
[EventDate "2019.08.19"]
[EventType "team-tourn"]
[EventCountry "ESP"]
[SourceTitle "playchess.com"]
[Source "ChessBase"]
[SourceQuality "1"]
[TimeControl "5400+30"]

1. d4 {[%emt 0:00:00]} Nf6 {[%emt 0:00:00]} 2. c4 {[%emt 0:00:00]} c5 {[%emt 0:00:00]} 3. d5 {[%emt 0:00:00]} b5 {[%emt 0:00:18]} 4. cxb5 {[%emt 0:00:23]} a6 {[%emt 0:00:06]} 5. bxa6 {[%emt 0:01:26]} g6 {[%emt 0:00:26]} 6. Nc3 {[%emt 0:00:45]} Bg7 {[%emt 0:00:06]} 7. e4 {[%emt 0:02:12]} O-O {[%emt 0:00:24]} 8. a7 {[%emt 0:01:07]} Rxa7 {[%emt 0:02:09]} 9. Nf3 {[%emt 0:00:07]} d6 {[%emt 0:02:50]} 10. Be2 {[%emt 0:00:27]} Bg4 {[%emt 0:03:47]} 11. Nd2 {[%emt 0:01:28]} Bxe2 {[%emt 0:01:51]} 12. Qxe2 {[%emt 0:00:05]} Nbd7 {[%emt 0:03:18]} 13. Nc4 {[%emt 0:02:11]} Qa8 {[%emt 0:03:13]} 14. O-O {[%emt 0:02:21]} Rb7 {[%emt 0:03:43]} 15. a3 {[%emt 0:05:56]} Rb3 {[%emt 0:05:34]} 16. Qc2 {[%emt 0:05:14]} Rfb8 {[%emt 0:02:40]} 17. Bd2 {[%emt 0:01:36]} Qa6 {[%emt 0:04:33]} 18. Nd1 {[%emt 0:02:44]} Ng4 {[%emt 0:07:59]} 19. Na5 {[%emt 0:14:52]} R3b6 {[%emt 0:14:12]} 20. Nc6 {[%emt 0:02:15]} Re8 {[%emt 0:02:31]} 21. Ba5 {[%emt 0:04:07]} Rb7 {[%emt 0:02:10]} 22. Rb1 {[%emt 0:04:21]} Nxh2 {[%emt 0:01:27]} 23. Re1 {[%emt 0:04:49]} Ng4 {[%emt 0:00:03]} 24. b4 {[%emt 0:04:28]} Nge5 {[%emt 0:03:11]} 25. Nxe5 {[%emt 0:13:54]} Nxe5 {[%emt 0:01:11]} 26. Ne3 {[%emt 0:00:07]} Rc8 {[%emt 0:05:04]} 27. Red1 {[%emt 0:02:32]} h5 {[%emt 0:10:51]} 28. f4 {[%emt 0:09:19]} Nd7 {[%emt 0:00:45]} 29. Kf2 {[%emt 0:01:00]} Rbb8 {[%emt 0:01:23]} 30. Qe2 {[%emt 0:01:47]} Qxe2+ {[%emt 0:03:29]} 31. Kxe2 {[%emt 0:00:01]} cxb4 {[%emt 0:03:57]} 32. axb4 {[%emt 0:00:12]} Nf6 {[%emt 0:02:38]} 33. Kd3 {[%emt 0:01:30]} Nd7 {[%emt 0:00:14]} 34. Rdc1 {[%emt 0:00:45]} Bh6 {[%emt 0:00:11]} 35. g3 {[%emt 0:00:18]} h4 {[%emt 0:00:10]} 36. Ng4 {[%emt 0:00:17]} Bg7 {[%emt 0:01:56]} 37. gxh4 {[%emt 0:00:27]} Kh7 {[%emt 0:00:15]} 38. Rc6 {[%emt 0:01:34]} Nf6 {[%emt 0:01:53]} 39. Nxf6+ {[%emt 0:00:37]} Bxf6 {[%emt 0:00:02]} 40. Rbc1 {[%emt 0:00:13]} Rh8 {[%emt 0:00:27]} 41. Kc4 {[%emt 0:01:54]} Kg7 {[%emt 0:00:17]} 42. b5 {[%emt 0:00:43]} Rxh4 {[%emt 0:00:28]} 43. Rf1 {[%emt 0:00:21]} Rh3 {[%emt 0:00:17]} 44. Bd2 {[%emt 0:02:44]} Ra3 {[%emt 0:01:42]} 45. b6 {[%emt 0:01:35]} Ra2 {[%emt 0:00:38]} 46. Bb4 {[%emt 0:00:14]} Re2 {[%emt 0:00:49]} 47. Re1 {[%emt 0:00:32]} Rf2 {[%emt 0:00:13]} 48. Kb5 {[%emt 0:00:42]} Rb2 {[%emt 0:00:57]} 49. e5 {[%emt 0:01:43]} dxe5 {[%emt 0:01:14]} 50. fxe5 {[%emt 0:00:14]} Bg5 {[%emt 0:01:25]} 51. Re4 {[%emt 0:01:07]} Bd2 {[%emt 0:03:04]} 52. d6 {[%emt 0:01:56]} exd6 {[%emt 0:01:21]} 53. exd6 {[%emt 0:00:09]} g5 {[%emt 0:00:22]} 54. Rcc4 {[%emt 0:01:49]} f5 {[%emt 0:02:19]} 55. Re7+ {[%emt 0:02:45]} Kg6 {[%emt 0:00:29]} 56. b7 {[%emt 0:00:11]} g4 {[%emt 0:00:33]} 57. Kc5 {[%emt 0:01:01]} g3 {[%emt 0:00:50]} 58. Bxd2 {[%emt 0:00:59]} Rxd2 {[%emt 0:00:02]} 59. Kc6 {[%emt 0:00:09]} Rb2 {[%emt 0:00:48]} 60. Rc7 {[%emt 0:00:57]} g2 {[%emt 0:00:36]} 61. Rc1 {[%emt 0:00:01]} f4 {[%emt 0:00:25]} 62. d7 {[%emt 0:00:32]} f3 {[%emt 0:00:34]} 63. Rc8 {[%emt 0:00:08]} R8xb7 {[%emt 0:00:14]} 64. Rg8+ {[%emt 0:01:01]} Kf5 {[%emt 0:00:16]} 65. d8=Q {[%emt 0:00:19]} R7b6+ {[%emt 0:01:09]} 66. Qxb6 {[%emt 0:00:54]} Rxb6+ {[%emt 0:00:03]} 67. Kxb6 {[%emt 0:00:04]} Kf4 {[%emt 0:00:28]} 68. Rg1 {[%emt 0:00:10]} 1-0